lending/lending_fUSD_20260330
["ID","MTS","AMOUNT","RATE_DAILY","PERIOD"]
[419073911,1774834248024,-926.9176627,0.00014795,2]
[419073912,1774834248034,-11496.42161442,0.000148,2]
[419073913,1774834248043,-502.96299207,0.00014825,3]
[419073914,1774834248052,-2807.0,0.00014882,2]
[419073915,1774834248062,-3200.33,0.000149,2]
[419073916,1774834248072,-1000.0,0.00014945,2]
[419073917,1774834248082,-2129.0,0.00014953,2]
[419073918,1774834248091,-1061.37,0.00014954,2]
[419073919,1774834248101,-1000.0,0.00014968,2]
[419073920,1774834248110,-246.42232543,0.00014985,2]
[419073921,1774834248119,-214.99978038,0.00014985,2]
[419073922,1774834248128,-161.4,0.00015,2]
[419073923,1774834248137,-320.88162964,0.00015003,2]
[419073924,1774834248147,-157.0,0.00015034,3]
[419073925,1774834248156,-309.95,0.00015061,2]
[419073926,1774834248166,-1922.180142,0.00015065,7]
[419073927,1774834248175,-784.86,0.00015068,2]
[419073928,1774834248184,-880.86,0.00015068,2]
[419073929,1774834248193,-150.0,0.0001508,2]
[419073930,1774834248202,-1000.0,0.00015089,2]
[419073931,1774834248211,-1000.0,0.0001509,2]
[419073932,1774834248222,-150.0,0.00015094,2]
[419073933,1774834248232,-2000.0,0.000151,2]
[419073934,1774834248241,-5535.0,0.000151,3]
[419073935,1774834248250,-1775.0,0.00015109,2]
[419073936,1774834248260,-455.20530509,0.00015137,7]
[419073937,1774834248269,-455.20530509,0.00015137,7]
[419073938,1774834248278,-227.60265254,0.00015137,7]
[419073939,1774834248287,-1262.0,0.00015146,2]
[419073940,1774834248296,-150.0,0.00015146,2]
[419073941,1774834248306,-925.0,0.00015146,2]
[419073942,1774834248315,-1216.0,0.00015146,2]
[419073943,1774834248325,-1348.966,0.00015146,2]
[419073944,1774834248334,-6014.0,0.00015146,2]
[419073945,1774834248343,-3518.0,0.00015146,2]
[419073946,1774834248352,-14453.20675463,0.00015151,2]
[419073947,1774834248361,-4078.83721184,0.00015151,2]
[419073948,1774834248370,-1000.0,0.00015156,2]
[419073949,1774834248380,-599.60298507,0.00015157,2]
[419073950,1774834248389,-151.0,0.00015158,2]
[419073951,1774834248398,-1712.93078312,0.00015158,2]
[419073952,1774834248407,-251.11897888,0.00015158,2]
[419073953,1774834248416,-254.27389926,0.00015158,2]
[419073954,1774834248426,-209.40437684,0.00015158,2]
[419073955,1774834248435,-200.0,0.00015158,2]
[419073956,1774834248444,-287.25082451,0.00015158,2]
[419073957,1774834248453,-891.61887448,0.00015158,2]
[419073958,1774834248462,-1596.0,0.00015183,2]
[419073959,1774834248471,-1000.0,0.00015185,2]
[419073960,1774834248481,-1000.0,0.00015192,2]
[419073961,1774834248490,-3633.96,0.000152,2]
[419073962,1774834248500,-3483.35,0.000152,2]
[419073963,1774834248510,-4164.08,0.000152,2]
[419073964,1774834248519,-1000.0,0.00015202,2]
[419073965,1774834248531,-10000.0,0.00015205,2]
[419073966,1774834248541,-2807.0,0.00015241,2]
[419073967,1774834248550,-150.0,0.00015267,2]
[419073968,1774834248561,-1000.0,0.00015268,2]
[419073969,1774834248570,-1000.0,0.00015294,2]
[419073970,1774834248580,-444.7525,0.000153,2]
[419073971,1774834248589,-15555.58,0.000153,2]
[419073972,1774834248598,-350.0,0.00015303,2]
[419073973,1774834248609,-3392.4,0.0001531,2]
[419073974,1774834248620,-1596.0,0.00015311,2]
[419073975,1774834248630,-1000.0,0.0001532,2]
[419073976,1774834248640,-1000.0,0.00015325,2]
[419073977,1774834248652,-428.13849235,0.00015328,2]
[419073978,1774834248661,-1000.0,0.00015337,2]
[419073979,1774834248671,-1000.0,0.00015338,2]
[419073980,1774834248680,-784.18,0.00015342,2]
[419073981,1774834248690,-882.42,0.00015342,2]
[419073982,1774834248700,-2000.0,0.00015342,2]
[419073983,1774834248709,-1000.0,0.00015342,2]
[419073984,1774834248719,-395.15417605,0.00015342,2]
[419073985,1774834248728,-2000.0,0.00015342,2]
[419073986,1774834248738,-2000.0,0.00015342,2]
[419073987,1774834248747,-152.0,0.00015353,5]
[419073988,1774834248757,-1000.0,0.00015358,2]
[419073989,1774834248766,-150.0,0.00015386,2]
[419073990,1774834248775,-1000.0,0.00015398,2]
[419073991,1774834248785,-6300.0,0.000154,5]
[419073992,1774834248794,-2000.0,0.000154,2]
[419073993,1774834248805,-150.0,0.00015403,2]
[419073994,1774834248815,-1000.0,0.00015409,2]
[419073995,1774834248825,-390.63224001,0.00015414,2]
[419073996,1774834248836,-150.0,0.00015418,2]
[419073997,1774834248846,-1000.0,0.00015418,2]
[419073998,1774834248855,-1000.0,0.00015425,2]
[419073999,1774834248864,-615.872281,0.00015438,7]
[419074000,1774834248874,-904.884758,0.00015438,7]
[419074001,1774834248884,-316.737506,0.00015438,7]
[419074002,1774834248894,-150.0,0.00015445,2]
[419074003,1774834248904,-1000.0,0.00015445,2]
[419074004,1774834248913,-1000.0,0.00015446,2]
[419074005,1774834248922,-2807.0,0.00015462,2]
[419074006,1774834248931,-1596.0,0.00015464,2]
[419074007,1774834248940,-150.0,0.00015468,2]
[419074008,1774834248949,-1000.0,0.00015485,2]
[419074009,1774834248959,-1000.0,0.00015489,2]
[419074010,1774834248969,-1000.0,0.0001549,2]
[419074011,1774834248978,-1000.0,0.00015495,2]
[419074012,1774834248987,-1200.0,0.000155,5]
[419074013,1774834248998,-5535.0,0.000155,5]
[419074014,1774834249007,-350.0,0.00015502,2]
[419074015,1774834249017,-4000.0,0.00015507,2]
[419074016,1774834249026,-3000.0,0.00015507,2]
[419074017,1774834249035,-2500.0,0.00015507,2]
[419074018,1774834249044,-150.0,0.0001552,2]
[419074019,1774834249054,-150.0,0.00015541,2]
[419074020,1774834249063,-1000.0,0.00015544,2]
[419074021,1774834249072,-1596.0,0.00015551,2]
[419074022,1774834249082,-1000.0,0.0001557,2]
[419074023,1774834249092,-789.18347511,0.00015587,2]
[419074024,1774834249102,-1596.0,0.00015599,2]
[419074025,1774834249111,-1000.0,0.000156,2]
[419074026,1774834249121,-1200.0,0.000156,5]
[419074027,1774834249130,-1900.0,0.00015601,2]
[419074028,1774834249142,-1900.0,0.00015601,2]
[419074029,1774834249154,-1900.0,0.00015601,2]
[419074030,1774834249164,-1900.0,0.00015601,2]
[419074031,1774834249175,-1900.0,0.00015601,2]
[419074032,1774834249185,-1900.0,0.00015601,2]
[419074033,1774834249195,-1900.0,0.00015601,2]
[419074034,1774834249205,-1900.0,0.00015601,2]
[419074036,1774834249214,-1900.0,0.00015601,2]
[419074038,1774834249224,-1469.0,0.00015601,2]
[419074040,1774834249235,-1950.0,0.00015602,2]
[419074042,1774834249245,-1950.0,0.00015602,2]
[419074044,1774834249254,-1950.0,0.00015602,2]
[419074046,1774834249263,-1950.0,0.00015602,2]
[419074048,1774834249274,-1950.0,0.00015602,2]
[419074050,1774834249285,-1950.0,0.00015602,2]
[419074052,1774834249294,-1950.0,0.00015602,2]
[419074053,1774834249304,-1950.0,0.00015602,2]
[419074054,1774834249313,-1950.0,0.00015602,2]
[419074055,1774834249322,-1876.0,0.00015602,2]
[419074056,1774834249332,-300.0,0.00015614,2]
[419074057,1774834249342,-1000.0,0.00015626,2]
[419074058,1774834249352,-1775.0,0.00015629,2]
[419074059,1774834249363,-1000.0,0.0001563,2]
[419074060,1774834249374,-1000.0,0.00015631,2]
[419074061,1774834249383,-1000.0,0.00015637,2]
[419074062,1774834249393,-1000.0,0.00015637,2]
[419074063,1774834249402,-1000.0,0.00015638,2]
[419074064,1774834249411,-1596.0,0.00015647,2]
[419074065,1774834249420,-1000.0,0.00015654,2]
[419074066,1774834249430,-1000.0,0.0001567,2]
[419074067,1774834249442,-1000.0,0.0001567,2]
[419074068,1774834249453,-1188.69408308,0.0001568,2]
[419074069,1774834249463,-1000.0,0.00015687,2]
[419074070,1774834249472,-300.0,0.00015688,2]
[419074071,1774834249481,-300.0,0.00015688,2]
[419074072,1774834249491,-300.0,0.00015688,2]
[419074073,1774834249502,-300.0,0.00015688,2]
[419074074,1774834249511,-300.0,0.00015688,2]
[419074075,1774834249521,-300.0,0.00015688,2]
[419074076,1774834249531,-300.0,0.00015688,2]
[419074077,1774834249542,-300.0,0.00015688,2]
[419074078,1774834249552,-300.0,0.00015688,2]
[419074079,1774834249563,-212.0,0.00015688,2]
[419074080,1774834249572,-1570.0,0.00015699,2]
[419074081,1774834249581,-1038.7,0.000157,2]
[419074082,1774834249590,-8559.39740073,0.000157,2]
[419074083,1774834249600,-1200.0,0.000157,5]
[419074084,1774834249609,-350.0,0.00015702,2]
[419074085,1774834249618,-1000.0,0.00015705,2]
[419074086,1774834249627,-1000.0,0.00015705,2]
[419074087,1774834249636,-151.0,0.00015706,2]
[419074088,1774834249646,-1776.30922209,0.00015706,2]
[419074089,1774834249655,-260.4103811,0.00015706,2]
[419074090,1774834249665,-217.15233878,0.00015706,2]
[419074091,1774834249674,-200.0,0.00015706,2]
[419074092,1774834249683,-924.60877284,0.00015706,2]
[419074093,1774834249693,-1000.0,0.00015709,2]
[419074094,1774834249702,-150.0,0.0001571,2]
[419074095,1774834249711,-150.0,0.00015713,2]
[419074096,1774834249720,-2807.0,0.0001572,2]
[419074097,1774834249729,-161.0,0.0001572,2]
[419074098,1774834249739,-2807.0,0.0001572,2]
[419074099,1774834249748,-1000.0,0.00015732,2]
[419074100,1774834249758,-1000.0,0.0001574,2]
[419074101,1774834249767,-1000.0,0.00015741,2]
[419074102,1774834249776,-1000.0,0.00015742,2]
[419074103,1774834249785,-1000.0,0.00015742,2]
[419074104,1774834249795,-789.18347509,0.00015744,2]
[419074106,1774834249804,-174.37,0.0001575,2]
[419074107,1774834249813,-1000.0,0.00015751,2]
[419074109,1774834249823,-1000.0,0.00015754,2]
[419074111,1774834249832,-330.525784,0.00015773,2]
[419074113,1774834249841,-661.05156,0.00015773,2]
[419074115,1774834249851,-371.288842,0.00015773,2]
[419074117,1774834249860,-206.63,0.00015773,2]
[419074119,1774834249870,-500.0,0.00015774,2]
[419074121,1774834249879,-484.73202994,0.00015774,2]
[419074122,1774834249889,-305.26063383,0.00015774,2]
[419074123,1774834249899,-150.0,0.00015781,2]
[419074124,1774834249907,-1775.0,0.00015791,2]
[419074125,1774834249917,-1000.0,0.00015793,2]
[419074126,1774834249926,-174.37,0.00015793,2]
[419074127,1774834249935,-1200.0,0.000158,5]
[419074128,1774834249946,-206.63,0.00015803,2]
[419074129,1774834249955,-150.0,0.00015806,2]
[419074130,1774834249964,-1000.0,0.00015814,2]
[419074131,1774834249973,-150.0,0.00015816,2]
[419074132,1774834249983,-150.0,0.00015818,2]
[419074133,1774834249993,-1000.0,0.0001582,2]
[419074134,1774834250002,-150.0,0.0001583,2]
[419074135,1774834250012,-206.63,0.00015834,2]
[419074136,1774834250023,-1596.0,0.00015836,2]
[419074137,1774834250032,-1000.0,0.00015838,2]
[419074138,1774834250043,-500.0,0.00015839,2]
[419074139,1774834250052,-500.0,0.00015839,2]
[419074140,1774834250061,-500.0,0.00015839,2]
[419074141,1774834250070,-500.0,0.00015839,2]
[419074142,1774834250080,-128040.00023938,0.0001584,2]
[419074143,1774834250089,-2000.0,0.0001584,2]
[419074144,1774834250099,-2000.0,0.0001584,2]
[419074145,1774834250109,-2000.0,0.0001584,2]
[419074146,1774834250118,-1000.0,0.00015846,2]
[419074147,1774834250127,-214.70167578,0.0001585,2]
[419074148,1774834250136,-150.0,0.00015861,2]
[419074149,1774834250146,-500.0,0.00015865,2]
[419074150,1774834250155,-500.0,0.00015871,2]
[419074151,1774834250164,-200.0,0.00015871,2]
[419074152,1774834250173,-500.0,0.00015871,2]
[419074153,1774834250182,-500.0,0.00015872,2]
[419074154,1774834250315,-500.0,0.00015872,2]
[419074155,1774834250326,-500.0,0.00015872,2]
[419074156,1774834250336,-500.0,0.00015872,2]
[419074157,1774834250346,-500.0,0.00015872,2]
[419074158,1774834250356,-200.0,0.00015872,2]
[419074159,1774834250367,-200.0,0.00015872,2]
[419074160,1774834250377,-1000.0,0.00015875,2]
[419074161,1774834250388,-183.42153242,0.00015877,7]
[419074162,1774834250398,-150.0,0.00015878,2]
[419074163,1774834250409,-1000.0,0.0001588,2]
[419074164,1774834250419,-596.50240709,0.00015887,2]
[419074165,1774834250428,-2500.0,0.0001589,2]
[419074166,1774834250438,-1361.13017709,0.0001589,2]
[419074167,1774834250447,-2500.0,0.0001589,2]
[419074168,1774834250456,-1000.0,0.00015891,2]
[419074169,1774834250466,-4000.0,0.00015895,2]
[419074170,1774834250475,-8962.0,0.00015895,5]
[419074171,1774834250484,-1061.37,0.00015899,2]
[419074172,1774834250492,-1000.0,0.000159,2]
[419074173,1774834250502,-3200.33,0.000159,2]
[419074174,1774834250511,-150.0,0.000159,2]
[419074175,1774834250520,-14453.20675463,0.000159,2]
[419074176,1774834250529,-753.89050251,0.000159,2]
[419074177,1774834250538,-4078.83721184,0.000159,2]
[419074178,1774834250547,-1744.0,0.000159,5]
[419074179,1774834250556,-11496.42161442,0.000159,2]
[419074180,1774834250565,-1416.99036534,0.000159,2]
[419074181,1774834250574,-408.97114272,0.000159,2]
[419074182,1774834250583,-789.18347509,0.000159,2]
[419074183,1774834250592,-1000.0,0.00015919,2]
[419074184,1774834250602,-1596.0,0.00015922,2]
[419074185,1774834250611,-1000.0,0.00015927,2]
[419074186,1774834250621,-1000.0,0.00015928,2]
[419074187,1774834250631,-1000.0,0.00015941,2]
[419074188,1774834250642,-1000.0,0.00015942,2]
[419074189,1774834250652,-150.0,0.00015945,2]
[419074190,1774834250661,-1775.0,0.00015947,2]
[419074191,1774834250670,-150.0,0.00015956,2]
[419074192,1774834250679,-1000.0,0.00015964,2]
[419074193,1774834250688,-500.0,0.00015972,2]
[419074194,1774834250697,-2000.0,0.00015972,2]
[419074195,1774834250707,-500.0,0.00015972,2]
[419074196,1774834250717,-347.0,0.00015973,2]
[419074197,1774834250726,-150.0,0.00015974,2]
[419074198,1774834250735,-1000.0,0.00015974,2]
[419074199,1774834250750,-339.0,0.00015975,2]
[419074200,1774834250760,-1570.0,0.0001598,2]
[419074201,1774834250771,-197.03033957,0.00015987,2]
[419074202,1774834250781,-439.63844128,0.0001599,2]
[419074203,1774834250791,-150.0,0.0001599,2]
[419074204,1774834250801,-218.64346577,0.0001599,2]
[419074205,1774834250812,-500.0,0.00015992,2]
[419074206,1774834250821,-623.65,0.00015992,2]
[419074207,1774834250831,-500.0,0.00015992,2]
[419074208,1774834250840,-500.0,0.00015992,2]
[419074209,1774834250850,-454.01718216,0.00015992,2]
[419074210,1774834250859,-30000.0,0.00015993,2]
[419074211,1774834250868,-368046.7929657,0.00015993,2]
[419074212,1774834250879,-18607.5808694,0.00015993,2]
[419074213,1774834250888,-189.112146,0.00015997,2]
[419074214,1774834250897,-151.0,0.00015997,2]
[419074215,1774834250907,-666.0,0.00015999,2]
[419074216,1774834250916,-666.0,0.00015999,2]
[419074217,1774834250926,-666.0,0.00015999,2]
[419074218,1774834250936,-666.0,0.00015999,2]
[419074219,1774834250947,-1061.37,0.00015999,2]
[419074220,1774834250956,-1061.37,0.00015999,2]
[419074221,1774834250968,-1061.37,0.00015999,2]
[419074222,1774834250978,-1061.37,0.00015999,2]
[419074223,1774834250987,-1061.37,0.00015999,2]
[419074224,1774834250996,-1061.37,0.00015999,2]
[419074225,1774834251006,-1061.39970255,0.00015999,2]
[419074226,1774834251015,-500.0,0.00015999,2]
[419074227,1774834251025,-500.0,0.00015999,2]
[419074228,1774834251034,-500.0,0.00015999,2]
[419074229,1774834251043,-500.0,0.00015999,2]
[419074230,1774834251053,-500.0,0.00015999,2]
[419074231,1774834251062,-500.0,0.00015999,2]
[419074232,1774834251071,-500.0,0.00015999,2]
[419074233,1774834251081,-500.0,0.00015999,2]
[419074234,1774834251090,-500.0,0.00015999,2]
[419074235,1774834251099,-500.0,0.00015999,2]
[419074236,1774834251109,-500.0,0.00015999,2]
[419074237,1774834251119,-1676373.40558028,0.00016,2]
[419074238,1774834253156,-17930.60237387,9.148e-05,2]
[419074239,1774834253168,-752.30137897,9.148e-05,2]
[419074240,1774834253180,-5547.40013359,9.148e-05,2]
[419074241,1774834253203,-2002.79999992,9.148e-05,2]
[419074242,1774834253452,-3686.74674121,9.148e-05,2]
[419074243,1774834254213,-1423.0623945,9.148e-05,2]
[419074244,1774834254230,-779.57649764,9.148e-05,2]
[419074245,1774834254242,-1897.46000004,9.148e-05,2]
[419074246,1774834254255,-310.80548823,9.148e-05,2]
[419074247,1774834266087,150.0,0.0001866,120]
[419074248,1774834266444,275.58,0.00019798,120]
[419074249,1774834273526,300.0,9e-05,3]
[419074250,1774834299536,150.0,0.00019261,120]
[419074251,1774834301697,2201.42,0.0002,120]
[419074252,1774834317646,200.0,8.9e-05,3]
[419074253,1774834319743,500.0,9e-05,3]
[419074254,1774834405827,300.0,8.9e-05,3]
[419074255,1774834407881,600.0,9e-05,3]
[419074256,1774834430572,167.75,8.049e-05,2]
[419074257,1774834445166,158.0,8.049e-05,3]
[419074258,1774834505232,158.0,8.049e-05,3]
[419074259,1774834507062,167.0,8.049e-05,3]
[419074260,1774834565350,158.0,8.049e-05,3]
[419074262,1774834628711,158.0,8.049e-05,3]
[419074263,1774834685116,158.0,8.049e-05,3]
[419074264,1774834746690,158.0,8.049e-05,3]
[419074265,1774834804992,167.0,8.049e-05,3]
[419074266,1774834811424,158.0,8.049e-05,3]
[419074267,1774834847755,-1427.38,8.742e-05,2]
[419074268,1774834847780,-242.0,8.742e-05,2]
[419074269,1774834847807,-253.27073827,8.895e-05,2]
[419074270,1774834866736,158.0,8.049e-05,3]
[419074271,1774834925801,-1029.34926173,9.048e-05,2]
[419074272,1774834926819,158.0,8.049e-05,3]
[419074273,1774834961878,9832.26,8.632e-05,2]
[419074274,1774834961901,167.74,8.632e-05,2]
[419074275,1774834969612,9832.27,8.632e-05,2]
[419074276,1774834969634,167.73,8.632e-05,2]
[419074277,1774834977483,1471.69,4.743e-05,2]
[419074278,1774834977835,1471.69,4.993e-05,2]
[419074279,1774834978038,1471.69,5.243e-05,2]
[419074280,1774834979318,1471.69,5.492e-05,2]
[419074281,1774834979786,1471.69,5.742e-05,2]
[419074282,1774834979836,1471.69,5.991e-05,2]
[419074283,1774834979900,1169.87,6.241e-05,2]
[419074284,1774834979922,301.82,6.241e-05,2]
[419074285,1774834979967,1471.69,6.491e-05,2]
[419074286,1774834980087,1471.69,6.74e-05,2]
[419074287,1774834980147,1471.69,6.99e-05,2]
[419074288,1774834980214,1471.69,7.24e-05,2]
[419074289,1774834980265,1471.69,7.489e-05,2]
[419074290,1774834980309,1471.69,7.739e-05,2]
[419074291,1774834980714,868.05,7.989e-05,2]
[419074292,1774834980739,603.64,7.989e-05,2]
[419074293,1774834980911,1471.69,8.238e-05,2]
[419074294,1774834981114,1471.69,8.488e-05,2]
[419074295,1774834985315,158.0,8.049e-05,3]
[419074296,1774835009254,760.7,5e-05,2]
[419074297,1774835017055,5692.29,8.632e-05,2]
[419074298,1774835017078,4307.71,8.632e-05,2]
[419074299,1774835046016,158.0,8.632e-05,3]
[419074303,1774835106214,167.0,8.632e-05,3]
[419074304,1774835108545,159.0,8.632e-05,3]
[419074305,1774835229539,800.0,8.9e-05,3]
[419074306,1774835231641,1600.0,9e-05,3]
[419074307,1774835316743,1320.0,8.23e-05,2]
[419074310,1774835406613,168.0,8.632e-05,3]
[419074315,1774835432221,-1471.69,8.738e-05,2]
[419074316,1774835432234,-242.0,8.738e-05,2]
[419074317,1774835432247,-200.0,8.803e-05,2]
[419074318,1774835432259,-250.0,8.862e-05,2]
[419074319,1774835432272,-824.86,8.951e-05,2]
[419074320,1774835432285,-1471.69,8.987e-05,2]
[419074321,1774835432299,-300.0,9.047e-05,2]
[419074322,1774835432311,-1200.0,9.047e-05,2]
[419074323,1774835432324,-300.0,9.047e-05,2]
[419074324,1774835432337,-246.5402,9.048e-05,2]
[419074325,1774835432349,-1608.8889,9.048e-05,2]
[419074326,1774835432362,-2500.0,9.048e-05,2]
[419074327,1774835432374,-6041.47750448,9.048e-05,2]
[419074332,1774835434466,-622.24371639,9.048e-05,2]
[419074333,1774835434481,-5078.62669733,9.048e-05,2]
[419074334,1774835434493,-5880.0,9.048e-05,2]
[419074335,1774835434505,-1300.0,9.048e-05,2]
[419074336,1774835434517,-3250.0,9.048e-05,2]
[419074337,1774835435535,-314.57995572,9.048e-05,2]
[419074338,1774835435547,-1513.58232096,9.048e-05,2]
[419074339,1774835435578,-10300.29639889,9.048e-05,2]
[419074340,1774835435614,-935.0,9.048e-05,2]
[419074341,1774835435625,-36942.75696969,9.048e-05,2]
[419074342,1774835435636,-13350.41699223,9.048e-05,2]
[419074343,1774835435648,-7429.15230123,9.048e-05,2]
[419074344,1774835435687,-3135.87063297,9.048e-05,2]
[419074345,1774835435698,-625.6194234,9.048e-05,2]
[419074346,1774835435710,-1120.8077338,9.048e-05,2]
[419074347,1774835435722,-817.79588592,9.048e-05,2]
[419074348,1774835435734,-3401.21383875,9.048e-05,2]
[419074349,1774835435771,-301.48251273,9.048e-05,2]
[419074350,1774835435783,-924.05253866,9.048e-05,2]
[419074351,1774835435795,-278.617552,9.048e-05,2]
[419074356,1774835441427,-10898.61237175,8.948e-05,2]
[419074357,1774835441742,-7487.84382139,8.948e-05,2]
[419074358,1774835441849,-560139.40250686,8.948e-05,2]
[419074359,1774835441858,-500.0,9.047e-05,2]
[419074360,1774835441868,-195.47623035,9.047e-05,2]
[419074361,1774835441877,-225614.91012485,9.048e-05,2]
[419074362,1774835441886,-150.0,9.1e-05,2]
[419074363,1774835441895,-150.0,9.147e-05,2]
[419074364,1774835441904,-150.0,9.147e-05,2]
[419074365,1774835441913,-150.0,9.148e-05,2]
[419074366,1774835441922,-165.7275915,9.148e-05,2]
[419074367,1774835441931,-167.412,9.148e-05,2]
[419074368,1774835441940,-3184.853,9.148e-05,2]
[419074369,1774835441949,-3562.74,9.148e-05,2]
[419074370,1774835441961,-150.99,9.148e-05,2]
[419074371,1774835441970,-1031.33,9.148e-05,2]
[419074372,1774835441979,-724.93,9.148e-05,2]
[419074373,1774835441988,-4939.35,9.148e-05,2]
[419074374,1774835441997,-299.99,9.148e-05,2]
[419074375,1774835442006,-9999.99,9.148e-05,2]
[419074376,1774835442015,-1471.69,9.237e-05,2]
[419074377,1774835442024,-171.0,9.349e-05,2]
[419074378,1774835442034,-450.44762194,9.367e-05,2]
[419074379,1774835442043,-2000.0,9.383e-05,2]
[419074380,1774835442052,-1045.0,9.396e-05,2]
[419074381,1774835442060,-1063.0,9.415e-05,2]
[419074382,1774835442069,-1471.69,9.487e-05,2]
[419074383,1774835442078,-5048.47902667,9.611e-05,2]
[419074384,1774835442088,-5000.0,9.611e-05,2]
[419074385,1774835442097,-250.0,9.611e-05,2]
[419074386,1774835442106,-250.0,9.611e-05,2]
[419074387,1774835442115,-535.71,9.659e-05,2]
[419074388,1774835442124,-577.23,9.67e-05,2]
[419074389,1774835442134,-166.66,9.756e-05,2]
[419074390,1774835442144,-1849.27,9.77e-05,2]
[419074391,1774835442153,-1852.42,9.844e-05,2]
[419074392,1774835442164,-500.0,9.883e-05,2]
[419074393,1774835442174,-420.0,9.952e-05,2]
[419074394,1774835442183,-1680.0,9.952e-05,2]
[419074395,1774835442192,-171.44,9.961e-05,2]
[419074396,1774835442201,-500.0,9.961e-05,2]
[419074397,1774835442210,-548.0205244,0.0001,2]
[419074398,1774835442219,-1290.93455469,0.0001,2]
[419074399,1774835442228,-363.74,0.0001,2]
[419074400,1774835442549,-389.17377518,0.0001,2]
[419074401,1774835442559,-766.19174919,0.0001,2]
[419074402,1774835442569,-843.6322612,0.0001,2]
[419074403,1774835442579,-872.32303286,0.0001,2]
[419074404,1774835442592,-152.34418165,0.0001,2]
[419074405,1774835442603,-756.59196051,0.0001,2]
[419074406,1774835442612,-500.0,0.0001,2]
[419074407,1774835442623,-500.0,0.0001,2]
[419074408,1774835442633,-500.0,0.0001,2]
[419074409,1774835442642,-200.0,0.0001,2]
[419074410,1774835442651,-500.0,0.0001,2]
[419074411,1774835442661,-500.0,0.0001,2]
[419074412,1774835442670,-500.0,0.0001,2]
[419074413,1774835442680,-151.0,0.0001,2]
[419074414,1774835442690,-500.0,0.0001,2]
[419074415,1774835442699,-151.0,0.0001,2]
[419074416,1774835442708,-500.0,0.0001,2]
[419074417,1774835442717,-500.0,0.0001,2]
[419074418,1774835442726,-151.0,0.0001,2]
[419074419,1774835442735,-500.0,0.0001,2]
[419074420,1774835442744,-500.0,0.0001,2]
[419074421,1774835442752,-151.0,0.0001,2]
[419074422,1774835442762,-500.0,0.0001,2]
[419074423,1774835442771,-500.0,0.0001,2]
[419074424,1774835442780,-151.0,0.0001,2]
[419074426,1774835442789,-178.32742231,0.0001,2]
[419074427,1774835442799,-500.0,0.0001,2]
[419074428,1774835442810,-500.0,0.0001,2]
[419074429,1774835442819,-151.0,0.0001,2]
[419074430,1774835442828,-500.0,0.0001,2]
[419074431,1774835442838,-500.0,0.0001,2]
[419074433,1774835442847,-151.0,0.0001,2]
[419074434,1774835442856,-500.0,0.0001,2]
[419074435,1774835442866,-500.0,0.0001,2]
[419074436,1774835442875,-151.0,0.0001,2]
[419074437,1774835442887,-500.0,0.0001,2]
[419074438,1774835442896,-500.0,0.0001,2]
[419074439,1774835442906,-151.0,0.0001,2]
[419074440,1774835442916,-500.0,0.0001,2]
[419074441,1774835442925,-151.0,0.0001,2]
[419074442,1774835442935,-151.0,0.0001,2]
[419074443,1774835442944,-1443.27779277,0.0001,2]
[419074444,1774835442955,-151.0,0.0001,2]
[419074445,1774835442964,-151.0,0.0001,2]
[419074446,1774835442974,-151.0,0.0001,2]
[419074447,1774835442983,-151.0,0.0001,2]